[Event "German-ch Blitz Women 2022"]
[Site "Magdeburg"]
[Date "2022.08.13"]
[Round "12.7"]
[White "Kunze, Kerstin"]
[Black "Staerk, Elisa"]
[Result "1-0"]
[ECO "B06"]
[WhiteElo "2020"]
[BlackElo "1947"]
[Annotator "TA"]
[PlyCount "68"]
[EventDate "2022.08.10"]
[EventType "tourn"]
[EventCountry "GER"]
[SourceTitle "playchess.com"]
[Source "ChessBase"]
[SourceQuality "1"]
[TimeControl "180+2"]

{[%evp 18,62,2,7,14,8,12,8,16,20,21,12,41,18,31,18,36,38,38,36,59,33,74,54,132,133,159,161,153,157,159,155,182,50,56,0,147,103,144,77,140,166,197,200,259,235,566]} 1. e4 {[%emt 0:00:01]} g6 {[%emt 0:00:00]} 2. d4 {[%emt 0:00:01]} Bg7 {[%emt 0:00:01]} 3. Nc3 {[%emt 0:00:02]} c5 {[%emt 0:00:01]} 4. Nf3 {[%emt 0:00:04]} cxd4 {[%emt 0:00:01]} 5. Nxd4 {[%emt 0:00:01]} Nc6 {[%emt 0:00:00]} 6. Be3 {[%emt 0:00:15]} Nf6 {[%emt 0:00:05]} 7. Be2 {[%emt 0:00:06]} O-O {[%emt 0:00:02]} 8. O-O {[%emt 0:00:02]} d6 {[%emt 0:00:01]} 9. h3 {[%emt 0:00:18]} a6 {[%emt 0:00:04]} 10. Qd2 {[%emt 0:00:29]} Nxd4 {[%emt 0:00:09] B73: Sicilian Dragon: Classical System without 9 Nb3.} 11. Bxd4 {[%emt 0:00:01]} ({Much worse is} 11. Qxd4 {[#]} Ng4 $1 12. Qd3 Nxe3 13. Qxe3 Bd7 $15) 11... b5 {[%emt 0:00:04]} 12. Bf3 {[%emt 0:00:25]} e5 {[%emt 0:00:42] The position is equal.} 13. Be3 {[%emt 0:00:05]} Qc7 {[%emt 0:00:06]} 14. a3 {[%emt 0:00:54]} Bb7 {[%emt 0:00:02]} 15. g3 {[%emt 0:00:06]} Rfd8 {[%emt 0:00:18][%cal Od6d5]} 16. Rad1 {[%emt 0:00:05]} Rac8 {[%emt 0:00:05]} 17. Bg5 {[%emt 0:00:04]} Qb6 {[%emt 0:00:32]} 18. h4 {[%emt 0:00:23][%cal Oh4h5]} Rc4 {[%emt 0:00:07]} 19. Rfe1 {[%emt 0:00:03][%cal Oh4h5]} Rd4 {[%emt 0:00:05]} 20. Qe2 {[%emt 0:00:05]} Rc8 {[%emt 0:00:13]} (20... Qc7 $14) 21. Be3 $16 {[%emt 0:00:01]} Ne8 {[%emt 0:00:27]} 22. Bxd4 {[%emt 0:00:02]} exd4 {[%emt 0:00:01]} 23. Nd5 {[%emt 0:00:01]} Bxd5 24. exd5 {[%emt 0:00:01]} Qc5 {[%emt 0:00:12]} 25. c3 {[%emt 0:00:12]} (25. Qe7 $18) 25... dxc3 $14 {[%emt 0:00:02]} 26. bxc3 {[%emt 0:00:01]} (26. Rc1 $14 Be5 27. Qd3) 26... Nf6 {[%emt 0:00:19]} (26... Bxc3 $11 {remains equal.} 27. Rc1 Qxa3) 27. Rd3 Re8 {[%emt 0:00:07]} 28. Qd1 {[%emt 0:00:05]} (28. Qxe8+ $142 Nxe8 29. Rxe8+ Bf8 30. Ra8) 28... Rxe1+ {[%emt 0:00:00]} (28... Qxa3 $142 29. h5 Qc5) 29. Qxe1 $16 {[%emt 0:00:01]} Qc4 {[%emt 0:00:02]} 30. Re3 {[%emt 0:00:02]} h6 {[%emt 0:00:02]} 31. h5 {[%emt 0:00:02]} Nd7 $2 {[%emt 0:00:02] [#]  Weighted Error Value: White=0.29 (precise) /Black=0.33} (31... gxh5 {is tougher.} 32. Qe2 Qxe2 33. Rxe2 Kf8) {Predecessor:} 32. Re8+ $146 Kh7 33. Qe7 Ne5 34. Qd8 Nxf3+ {1-0 (34) Kunze,K (2020)-Silz,E (1950) Magdeburg 2022} 1-0

[Event "German-ch Blitz Women 2022"]
[Site "Magdeburg"]
[Date "2022.08.13"]
[Round "12.8"]
[White "Doll, Rebecca"]
[Black "Zschischang, Marine"]
[Result "1-0"]
[ECO "C10"]
[WhiteElo "1933"]
[BlackElo "2083"]
[Annotator "NA RC"]
[PlyCount "112"]
[EventDate "2022.08.10"]
[EventType "tourn"]
[EventCountry "GER"]
[SourceTitle "playchess.com"]
[Source "ChessBase"]
[SourceQuality "1"]
[TimeControl "180+2"]

1. e4 e6 2. d4 {[%emt 0:00:03]} d5 {[%emt 0:00:00]} 3. Nd2 {[%emt 0:00:01]} dxe4 {[%emt 0:00:01]} 4. Nxe4 {[%emt 0:00:02]} Nd7 {[%emt 0:00:01]} 5. Nf3 {[%emt 0:00:09]} Ngf6 {[%emt 0:00:01]} 6. Nxf6+ {[%emt 0:00:09]} Nxf6 {[%emt 0:00:01]} 7. Bd3 {[%emt 0:00:42]} c5 {[%emt 0:00:01]} 8. Be3 {[%emt 0:00:09]} Nd5 {[%emt 0:00:04]} 9. Bd2 {[%emt 0:00:09]} Qc7 {[%emt 0:00:04]} 10. O-O {[%emt 0:00:32]} c4 {[%emt 0:00:01]} 11. Be4 {[%emt 0:00:18]} Nf6 {[%emt 0:00:06]} 12. Qe2 {[%emt 0:00:11]} Bd6 {[%emt 0:00:10]} 13. Ne5 {[%emt 0:00:15]} Nxe4 {[%emt 0:00:04]} 14. Qxe4 {[%emt 0:00:02]} Bd7 {[%emt 0:00:06]} 15. Nxd7 {[%emt 0:00:06]} Qxd7 {[%emt 0:00:01]} 16. d5 {[%emt 0:00:06]} Rc8 {[%emt 0:00:28]} 17. dxe6 {[%emt 0:00:02]} Qxe6 {[%emt 0:00:07]} 18. Qxb7 {[%emt 0:00:10]} O-O {[%emt 0:00:04]} 19. Rfe1 {[%emt 0:00:08]} Qf6 20. c3 {[%emt 0:00:15]} Bc5 {[%emt 0:00:19]} 21. Be3 {[%emt 0:00:02]} Rb8 {[%emt 0:00:05]} 22. Qd5 {[%emt 0:00:05]} Bxe3 {[%emt 0:00:04]} 23. fxe3 {[%emt 0:00:02]} Rxb2 {[%emt 0:00:01]} 24. Rf1 {[%emt 0:00:03]} Qb6 {[%emt 0:00:04]} 25. Rf3 {[%emt 0:00:04]} Rb1+ {[%emt 0:00:09]} 26. Rf1 {[%emt 0:00:00]} Qxe3+ {[%emt 0:00:02]} 27. Kh1 {[%emt 0:00:02]} Rxa1 {[%emt 0:00:03]} 28. Rxa1 {[%emt 0:00:01]} Qxc3 {[%emt 0:00:01]} 29. Rd1 {[%emt 0:00:02]} Qc2 {[%emt 0:00:10]} 30. h3 {[%emt 0:00:03]} g6 {[%emt 0:00:04]} 31. Qd2 {[%emt 0:00:03]} Qxd2 {[%emt 0:00:05]} 32. Rxd2 {[%emt 0:00:01]} c3 {[%emt 0:00:05]} 33. Rc2 {[%emt 0:00:01]} Rc8 {[%emt 0:00:01]} 34. Kg1 {[%emt 0:00:01]} Kg7 {[%emt 0:00:01]} 35. Kf2 {[%emt 0:00:01]} Kf6 {[%emt 0:00:01]} 36. Ke3 {[%emt 0:00:01]} Ke5 {[%emt 0:00:04]} 37. g3 {[%emt 0:00:01]} h5 {[%emt 0:00:09]} 38. h4 {[%emt 0:00:01]} Kf5 {[%emt 0:00:01]} 39. Kf3 {[%emt 0:00:03]} g5 {[%emt 0:00:06]} 40. hxg5 {[%emt 0:00:01]} Kxg5 {[%emt 0:00:01]} 41. a3 {[%emt 0:00:02]} Rc4 {[%emt 0:00:04]} 42. a4 {[%emt 0:00:02]} Rxa4 {[%emt 0:00:07]} 43. Rxc3 {[%emt 0:00:01]} f5 {[%emt 0:00:04]} 44. Rb3 {[%emt 0:00:03]} a5 {[%emt 0:00:01]} 45. Rc3 {[%emt 0:00:01]} Rb4 {[%emt 0:00:02]} 46. Kg2 {[%emt 0:00:08]} Kg4 {[%emt 0:00:04]} 47. Rd3 {[%emt 0:00:01]} Rb2+ {[%emt 0:00:02]} 48. Kf1 {[%emt 0:00:02]} a4 {[%emt 0:00:06]} 49. Ra3 {[%emt 0:00:02]} Rb3 {[%emt 0:00:06]} 50. Rxa4+ {[%emt 0:00:02]} Kxg3 {[%emt 0:00:00]} 51. Ra5 {[%emt 0:00:03]} Kg4 {[%emt 0:00:05]} 52. Ra8 {[%emt 0:00:03]} Rb2 {[%emt 0:00:03]} 53. Rg8+ {[%emt 0:00:02]} Kf3 {[%emt 0:00:02]} 54. Kg1 {[%emt 0:00:02]} h4 {[%emt 0:00:05]} 55. Rh8 {[%emt 0:00:01]} f4 {[%emt 0:00:04]} 56. Rxh4 {[%emt 0:00:03]} Kg3 {[%emt 0:00:01]} 1-0

[Event "German-ch Blitz Women 2022"]
[Site "Magdeburg"]
[Date "2022.08.13"]
[Round "12.9"]
[White "Wulf, Constanze"]
[Black "Schuster, Rebekka"]
[Result "1/2-1/2"]
[ECO "A04"]
[WhiteElo "1835"]
[BlackElo "1815"]
[Annotator "NA RC COMBH"]
[PlyCount "49"]
[EventDate "2022.08.10"]
[EventType "tourn"]
[EventCountry "GER"]
[SourceTitle "playchess.com"]
[Source "ChessBase"]
[SourceQuality "1"]
[TimeControl "180+2"]

1. Nf3 {[%emt 0:00:01]} e6 {[%emt 0:00:00]} 2. b3 {[%emt 0:00:02]} d5 {[%emt 0:00:05]} 3. Bb2 {[%emt 0:00:01]} Nf6 {[%emt 0:00:02]} 4. e3 {[%emt 0:00:01]} Be7 {[%emt 0:00:06]} 5. Be2 {[%emt 0:00:02]} O-O {[%emt 0:00:02]} 6. O-O {[%emt 0:00:01]} c5 {[%emt 0:00:01]} 7. d3 {[%emt 0:00:04]} Nc6 {[%emt 0:00:01]} 8. Nbd2 {[%emt 0:00:07]} Bd6 {[%emt 0:00:56]} 9. c4 {[%emt 0:00:20]} Bc7 {[%emt 0:00:18]} 10. Rc1 {[%emt 0:00:17]} d4 {[%emt 0:00:12]} 11. exd4 {[%emt 0:00:27]} Nxd4 {[%emt 0:00:03]} 12. Nxd4 {[%emt 0:00:05]} cxd4 {[%emt 0:00:04]} 13. Ne4 {[%emt 0:00:23]} Nxe4 {[%emt 0:00:28]} 14. dxe4 {[%emt 0:00:01]} Qh4 {[%emt 0:00:01]} 15. g3 {[%emt 0:00:08]} Qxe4 {[%emt 0:00:02]} 16. Bf3 {[%emt 0:00:07]} Qf5 {[%emt 0:00:09]} 17. Qxd4 {[%emt 0:00:18]} e5 {[%emt 0:00:17]} 18. Qe4 {[%emt 0:00:19]} Qxe4 {[%emt 0:00:21]} 19. Bxe4 {[%emt 0:00:01]} f5 {[%emt 0:00:01]} 20. Bd5+ {[%emt 0:00:06]} Kh8 {[%emt 0:00:07]} 21. Rfe1 {[%emt 0:00:01]} e4 {[%emt 0:00:03]} 22. f3 {[%emt 0:00:28]} exf3 {[%emt 0:00:09]} 23. Re7 {[%emt 0:00:19]} Bb6+ {[%emt 0:00:05]} 24. Kf1 {[%emt 0:00:01]} Rf6 25. Re8+ 1/2-1/2

[Event "German-ch Blitz Women 2022"]
[Site "Magdeburg"]
[Date "2022.08.13"]
[Round "12.10"]
[White "Stangl, Anita"]
[Black "Fock, Sana"]
[Result "1-0"]
[ECO "B90"]
[WhiteElo "2023"]
[BlackElo "1807"]
[Annotator "NA RC"]
[PlyCount "95"]
[EventDate "2022.08.10"]
[EventType "tourn"]
[EventCountry "GER"]
[SourceTitle "playchess.com"]
[Source "ChessBase"]
[SourceQuality "1"]
[TimeControl "180+2"]

1. e4 {[%emt 0:00:00]} c5 {[%emt 0:00:01]} 2. Nf3 {[%emt 0:00:01]} d6 3. d4 cxd4 {[%emt 0:00:02]} 4. Nxd4 {[%emt 0:00:01]} Nf6 {[%emt 0:00:01]} 5. Nc3 {[%emt 0:00:01]} a6 {[%emt 0:00:01]} 6. Bc4 {[%emt 0:00:01]} e6 {[%emt 0:00:04]} 7. a3 {[%emt 0:00:00]} Nbd7 {[%emt 0:00:04]} 8. O-O {[%emt 0:00:04]} Be7 {[%emt 0:00:19]} 9. Bxe6 {[%emt 0:00:01]} fxe6 {[%emt 0:00:03]} 10. Nxe6 {[%emt 0:00:02]} Qb6 {[%emt 0:00:12]} 11. Nxg7+ {[%emt 0:00:01]} Kf7 {[%emt 0:00:09]} 12. Nf5 {[%emt 0:00:02]} Ne5 {[%emt 0:00:10]} 13. Bg5 {[%emt 0:00:17]} Bxf5 {[%emt 0:00:41]} 14. exf5 {[%emt 0:00:12]} h5 {[%emt 0:00:37]} 15. Bxf6 {[%emt 0:00:21]} Bxf6 {[%emt 0:00:11]} 16. Qd5+ {[%emt 0:00:02]} Kg7 {[%emt 0:00:11]} 17. Ne4 {[%emt 0:00:08]} Rad8 {[%emt 0:00:14]} 18. Rad1 {[%emt 0:00:16]} Qc6 {[%emt 0:00:17]} 19. Nxf6 {[%emt 0:00:05]} Kxf6 {[%emt 0:00:04]} 20. Qe6+ {[%emt 0:00:01]} Kg7 {[%emt 0:00:03]} 21. f6+ {[%emt 0:00:04]} Kh6 {[%emt 0:00:07]} 22. Rfe1 {[%emt 0:00:20]} Rhg8 {[%emt 0:00:02]} 23. f7+ {[%emt 0:00:11]} Rg6 {[%emt 0:00:02]} 24. Qd5 {[%emt 0:00:14]} Qxd5 {[%emt 0:00:02]} 25. Rxd5 {[%emt 0:00:01]} Nxf7 {[%emt 0:00:01]} 26. Re7 {[%emt 0:00:08]} Ne5 {[%emt 0:00:04]} 27. Rxb7 {[%emt 0:00:06]} Rdg8 {[%emt 0:00:02]} 28. g3 {[%emt 0:00:02]} Nf3+ {[%emt 0:00:02]} 29. Kg2 {[%emt 0:00:03]} Nh4+ {[%emt 0:00:04]} 30. Kf1 {[%emt 0:00:01]} Nf3 {[%emt 0:00:04]} 31. h4 {[%emt 0:00:05]} Rf8 {[%emt 0:00:03]} 32. Rb6 {[%emt 0:00:06]} Nh2+ {[%emt 0:00:02]} 33. Kg2 {[%emt 0:00:09]} Ng4 {[%emt 0:00:01]} 34. Rd2 {[%emt 0:00:06]} Rgf6 {[%emt 0:00:02]} 35. f4 {[%emt 0:00:01]} Ne3+ 36. Kf3 Nf1 {[%emt 0:00:04]} 37. Rdxd6 {[%emt 0:00:04]} Nh2+ {[%emt 0:00:02]} 38. Kg2 {[%emt 0:00:01]} Ng4 {[%emt 0:00:01]} 39. Rxf6+ Rxf6 40. Rxf6+ {[%emt 0:00:02]} Nxf6 {[%emt 0:00:02]} 41. Kf3 {[%emt 0:00:01]} Kg6 {[%emt 0:00:02]} 42. Ke3 {[%emt 0:00:02]} Kf5 {[%emt 0:00:00]} 43. c4 {[%emt 0:00:01]} Nd7 {[%emt 0:00:03]} 44. Kd4 {[%emt 0:00:01]} Kg4 {[%emt 0:00:01]} 45. Kd5 {[%emt 0:00:02]} Kxg3 {[%emt 0:00:01]} 46. f5 {[%emt 0:00:02]} Kg4 {[%emt 0:00:04]} 47. Ke6 {[%emt 0:00:02]} Kxh4 {[%emt 0:00:03]} 48. Kxd7 {[%emt 0:00:01]} 1-0

[Event "German-ch Blitz Women 2022"]
[Site "Magdeburg"]
[Date "2022.08.13"]
[Round "12.11"]
[White "Falke, Ornella"]
[Black "Heil, Marina"]
[Result "0-1"]
[ECO "B07"]
[WhiteElo "1912"]
[BlackElo "1926"]
[Annotator "TA"]
[PlyCount "30"]
[EventDate "2022.08.10"]
[EventType "tourn"]
[EventCountry "GER"]
[SourceTitle "playchess.com"]
[Source "ChessBase"]
[SourceQuality "1"]
[TimeControl "180+2"]

{[%evp 9,30,-10,25,19,50,45,94,12,26,12,66,0,101,-55,-78,-146,-131,-154,-143,-234,-260,-1345,-1363]} 1. e4 {[%emt 0:00:01]} d6 {[%emt 0:00:01]} 2. d4 {[%emt 0:00:03]} Nf6 {[%emt 0:00:01]} 3. Nc3 {[%emt 0:00:01]} Nbd7 {[%emt 0:00:01]} 4. Nf3 {[%emt 0:00:02]} e5 {[%emt 0:00:01]} 5. g4 {[%emt 0:00:02]} h6 {[%emt 0:00:02]} 6. Rg1 {[%emt 0:00:06] C41: Philidor Defence.} exd4 {[%emt 0:00:23]} 7. Nxd4 {[%emt 0:00:02]} Ne5 {[%emt 0:00:01] [#]} (7... a6 $14 {was preferrable.}) 8. g5 $146 {[%emt 0:00:09]} (8. f4 $16) ({Predecessor:} 8. Be2 c6 9. f4 Ng6 10. Be3 Qa5 11. Qd2 h5 12. h3 hxg4 13. hxg4 Rh2 14. Nf5 Bxf5 15. gxf5 {1-0 (26) Janaszak,D (2348)-Khoroshev,N (2364) Chess.com INT 2021}) 8... hxg5 $11 {[%emt 0:00:05]} 9. Bxg5 {[%emt 0:00:02]} Rxh2 {[%emt 0:00:05]} (9... c6 $11) 10. Be2 {[%emt 0:00:25]} (10. Nf3 $1 $14 Nxf3+ 11. Qxf3) 10... c5 {[%emt 0:00:08]} (10... c6 $11 {keeps the balance.}) 11. Ndb5 $2 {[%emt 0:00:18]} ({White has to play} 11. Nf3 $16 Nxf3+ 12. Bxf3) 11... a6 $15 {[%emt 0:00:03]} 12. Na3 {[%emt 0:00:16]} (12. Bf4 $142 Rh4 13. Bxe5 dxe5 14. Qxd8+ Kxd8 15. O-O-O+ Bd7 16. Nd5) 12... b5 {[%emt 0:00:02] [#] aiming for ...b4. Black is more active.} 13. Nd5 {[%emt 0:00:15]} Qa5+ {[%emt 0:00:23]} 14. c3 {[%emt 0:00:10]} (14. Bd2 $17 {might work better.} Qd8 15. Bf4) 14... Nxe4 $19 {[%emt 0:00:12]} 15. Qd3 $2 {[%emt 0:00:45]} (15. Bf4 Nxf2 16. Qb1 Nfd3+ 17. Bxd3 Rxb2 18. Qd1) 15... Nxd3+ {[%emt 0:00:08] Weighted Error Value: White=1.35/Black=0.39} 0-1

[Event "German-ch Blitz Women 2022"]
[Site "Magdeburg"]
[Date "2022.08.13"]
[Round "12.12"]
[White "Kosovska, Olena"]
[Black "Leveikina, Jevgenija"]
[Result "1/2-1/2"]
[ECO "B12"]
[WhiteElo "1831"]
[BlackElo "2061"]
[Annotator "NA RC"]
[PlyCount "84"]
[EventDate "2022.08.10"]
[EventType "tourn"]
[EventCountry "GER"]
[SourceTitle "playchess.com"]
[Source "ChessBase"]
[SourceQuality "1"]
[TimeControl "180+2"]

1. e4 {[%emt 0:00:01]} c6 {[%emt 0:00:00]} 2. d4 d5 3. e5 {[%emt 0:00:03]} Bf5 {[%emt 0:00:01]} 4. Nc3 {[%emt 0:00:01]} Qb6 {[%emt 0:00:01]} 5. h4 {[%emt 0:00:07]} h5 {[%emt 0:00:01]} 6. Nge2 {[%emt 0:00:02]} e6 {[%emt 0:00:03]} 7. Ng3 {[%emt 0:00:01]} Bg6 {[%emt 0:00:01]} 8. Be2 {[%emt 0:00:02]} c5 {[%emt 0:00:06]} 9. dxc5 {[%emt 0:00:13]} Bxc5 {[%emt 0:00:04]} 10. O-O {[%emt 0:00:03]} Be7 {[%emt 0:00:18]} 11. Bxh5 {[%emt 0:00:18]} Bxh4 {[%emt 0:00:15]} 12. Bxg6 {[%emt 0:00:12]} Bxg3 {[%emt 0:00:13]} 13. Bxf7+ {[%emt 0:00:10]} Kf8 {[%emt 0:00:11]} 14. Qf3 {[%emt 0:00:14]} Bh2+ {[%emt 0:00:20]} 15. Kh1 {[%emt 0:00:02]} Bxe5+ {[%emt 0:00:18]} 16. Bh5+ {[%emt 0:00:02]} Nf6 {[%emt 0:00:01]} 17. g4 {[%emt 0:00:22]} Kg8 {[%emt 0:00:14]} 18. Kg2 {[%emt 0:00:17]} Nbd7 {[%emt 0:00:06]} 19. Na4 {[%emt 0:00:19]} Qd4 {[%emt 0:00:17]} 20. Nc3 {[%emt 0:00:15]} Rf8 {[%emt 0:00:10]} 21. Be3 {[%emt 0:00:02]} Qb4 {[%emt 0:00:02]} 22. Qe2 {[%emt 0:00:14]} d4 {[%emt 0:00:24]} 23. a3 {[%emt 0:00:15]} Qd6 {[%emt 0:00:10]} 24. Nb5 {[%emt 0:00:03]} Qd5+ {[%emt 0:00:01]} 25. f3 {[%emt 0:00:08]} dxe3 {[%emt 0:00:10]} 26. Rad1 {[%emt 0:00:04]} Qc6 {[%emt 0:00:05]} 27. Nd4 {[%emt 0:00:03]} Bxd4 {[%emt 0:00:10]} 28. Rxd4 {[%emt 0:00:01]} Ne5 {[%emt 0:00:08]} 29. Qxe3 {[%emt 0:00:03]} Qc7 {[%emt 0:00:04]} 30. Re1 {[%emt 0:00:05]} Nxh5 {[%emt 0:00:05]} 31. gxh5 {[%emt 0:00:02]} Rxh5 {[%emt 0:00:00]} 32. Re4 {[%emt 0:00:04]} Rhf5 {[%emt 0:00:03]} 33. Rxe5 {[%emt 0:00:03]} Qf7 {[%emt 0:00:01]} 34. Rxf5 {[%emt 0:00:04]} Qxf5 {[%emt 0:00:02]} 35. Qe4 {[%emt 0:00:04]} Qg5+ {[%emt 0:00:01]} 36. Kf2 {[%emt 0:00:01]} Rf6 {[%emt 0:00:02]} 37. Rg1 {[%emt 0:00:05]} Qc5+ {[%emt 0:00:01]} 38. Qe3 {[%emt 0:00:06]} Qxc2+ {[%emt 0:00:02]} 39. Qe2 {[%emt 0:00:00]} Qc5+ {[%emt 0:00:01]} 40. Qe3 {[%emt 0:00:01]} Qc2+ {[%emt 0:00:01]} 41. Qe2 {[%emt 0:00:01]} Qc5+ {[%emt 0:00:06]} 42. Qe3 {[%emt 0:00:01]} Qc2+ 1/2-1/2

[Event "German-ch Blitz Women 2022"]
[Site "Magdeburg"]
[Date "2022.08.13"]
[Round "13.1"]
[White "Leveikina, Jevgenija"]
[Black "Paehtz, Elisabeth"]
[Result "1/2-1/2"]
[ECO "A40"]
[WhiteElo "2061"]
[BlackElo "2484"]
[Annotator "TA"]
[PlyCount "117"]
[EventDate "2022.08.10"]
[EventType "tourn"]
[EventCountry "GER"]
[SourceTitle "playchess.com"]
[Source "ChessBase"]
[SourceQuality "1"]
[TimeControl "180+2"]

{[%evp 9,117,4,31,21,42,29,31,30,37,18,33,27,29,23,36,5,23,0,28,21,35,24,50,47,49,27,23,37,21,0,88,40,100,19,481,486,468,466,606,598,577,521,613,462,641,666,769,760,739,737,754,752,745,666,827,792,808,801,850,848,843,688,1018,703,991,997,1447,552,558,556,552,547,506,499,493,270,265,265,248,177,200,39,39,40,34,0,0,0,1,0,0,0,0,0,0,0,0,0,0,0,0,0,0,0,0,0,0,0,0,0]} 1. d4 {[%emt 0:00:01]} e6 {[%emt 0:00:01]} 2. Nf3 {[%emt 0:00:01]} c5 {[%emt 0:00:02]} 3. c3 {[%emt 0:00:01]} b6 {[%emt 0:00:02]} 4. Bf4 {[%emt 0:00:01]} Bb7 {[%emt 0:00:02]} 5. e3 {[%emt 0:00:01]} cxd4 {[%emt 0:00:05]} 6. cxd4 {[%emt 0:00:01] A43: Schmid Benoni.} Nf6 {[%emt 0:00:05]} 7. Nc3 {[%emt 0:00:01]} a6 {[%emt 0:00:02]} 8. h3 {[%emt 0:00:01] White is slightly better.} d6 {[%emt 0:00:01]} 9. Be2 {[%emt 0:00:01] [#]} Nbd7 $146 {[%emt 0:00:01]} ({Predecessor:} 9... Be7 10. O-O O-O 11. Nd2 Nbd7 12. Bf3 Bxf3 13. Nxf3 Rc8 14. Qe2 b5 15. a3 Nb6 {0-1 (41) Palchun,G (2047)-Galstyan,G Chalkidiki 2007}) 10. O-O {[%emt 0:00:03]} Be7 {[%emt 0:00:01]} 11. Rc1 {[%emt 0:00:01]} O-O {[%emt 0:00:03]} 12. a3 {[%emt 0:00:01]} Re8 {[%emt 0:00:02]} 13. b4 {[%emt 0:00:09]} Nf8 {[%emt 0:00:07]} 14. Qb3 {[%emt 0:00:03]} Ng6 {[%emt 0:00:03]} 15. Bh2 {[%emt 0:00:03]} Ne4 {[%emt 0:00:10]} 16. Nxe4 {[%emt 0:00:09]} Bxe4 {[%emt 0:00:01]} 17. Nd2 {[%emt 0:00:01]} Bd5 {[%emt 0:00:02]} 18. Bc4 {[%emt 0:00:03]} Bb7 {[%emt 0:00:04]} 19. Rfd1 {[%emt 0:00:15]} Bh4 {[%emt 0:00:12]} (19... b5 $1 $11 20. Bd3 Qd7) 20. Be2 {[%emt 0:00:19]} (20. b5 $16) 20... Qd7 {[%emt 0:00:13]} (20... Be7 $14) 21. Bf3 {[%emt 0:00:07]} (21. Nc4 $16 Bd5 22. Qb1 (22. Nxb6 Bxb3 23. Nxd7 Bxd1 $11) 22... Bxc4 23. Rxc4) 21... d5 $2 {[%emt 0:00:10][%mdl 8192]} (21... Bxf3 $11 {and Black stays safe.} 22. Nxf3 Bf6) 22. Rc7 $18 {[%emt 0:00:10]} Qd8 {[%emt 0:00:09]} 23. Rxb7 {[%emt 0:00:03]} Rc8 {[%emt 0:00:16]} 24. Be2 {[%emt 0:00:08]} b5 {[%emt 0:00:02]} 25. Nf3 {[%emt 0:00:11]} Bf6 {[%emt 0:00:05]} 26. Qb2 {[%emt 0:00:03]} Rc6 {[%emt 0:00:02]} 27. Rc1 {[%emt 0:00:40]} Qc8 {[%emt 0:00:38]} 28. Rxc6 Qxc6 29. Rc7 {[%emt 0:00:07]} Qa8 {[%emt 0:00:09]} 30. Qc2 {[%emt 0:00:04]} Ne7 {[%emt 0:00:09]} 31. Be5 {[%emt 0:00:08]} h6 {[%emt 0:00:12]} 32. Bxf6 {[%emt 0:00:08]} gxf6 {[%emt 0:00:01]} 33. Qc5 {[%emt 0:00:10]} Nf5 {[%emt 0:00:02]} 34. Bd3 {[%emt 0:00:05] [#] Hoping for Bxf5.} Ng7 {[%emt 0:00:06]} 35. Qc6 {[%emt 0:00:16]} Qb8 {[%emt 0:00:01]} 36. Nd2 {[%emt 0:00:07]} e5 {[%emt 0:00:06]} 37. Rb7 {[%emt 0:00:07]} Qd8 {[%emt 0:00:02]} 38. Qc7 {[%emt 0:00:07]} Qxc7 {[%emt 0:00:09]} 39. Rxc7 {[%emt 0:00:01]} exd4 {[%emt 0:00:01]} 40. exd4 Ne6 41. Rc6 {[%emt 0:00:11]} Nxd4 {[%emt 0:00:01]} 42. Rxa6 {[%emt 0:00:01]} (42. Rd6 $142) 42... Re1+ {[%emt 0:00:01]} 43. Kh2 {[%emt 0:00:01]} Rd1 {[%emt 0:00:01]} 44. Ra8+ {[%emt 0:00:07]} ({Not} 44. Rxf6 Rxd2 45. Bb1 Rb2 $14) 44... Kg7 {[%emt 0:00:01]} 45. Nf3 {[%emt 0:00:03]} Nxf3+ $14 {[%emt 0:00:03]} ({Weaker is} 45... Rxd3 46. Nxd4 Rxd4 47. Rb8 $18) 46. gxf3 {[%emt 0:00:01]} Rxd3 {[%emt 0:00:01][%mdl 4096] Endgame KR-KR} 47. Kg2 {[%emt 0:00:01]} Kg6 {[%emt 0:00:05] The position is equal.} 48. Ra5 {[%emt 0:00:02]} d4 {[%emt 0:00:03][%cal Bd5d4,Bd4d3][%mdl 32]} 49. Rxb5 {[%emt 0:00:01] [#] And now a4 would win.} Rxa3 {[%emt 0:00:01]} 50. Rd5 {[%emt 0:00:01]} d3 {[%emt 0:00:06]} 51. b5 {[%emt 0:00:01]} Rb3 {[%emt 0:00:01]} 52. b6 {[%emt 0:00:01]} f5 {[%emt 0:00:12]} 53. b7 {[%emt 0:00:03]} Rxb7 {[%emt 0:00:02]} 54. Rxd3 {[%emt 0:00:01]} Kg5 {[%emt 0:00:01]} 55. Rd4 {[%emt 0:00:05]} f4 {[%emt 0:00:04]} 56. Ra4 {[%emt 0:00:01]} f5 {[%emt 0:00:04]} 57. Rc4 {[%emt 0:00:01]} Rg7 {[%emt 0:00:04]} 58. Kh2 {[%emt 0:00:02]} Re7 {[%emt 0:00:01]} 59. Kg2 {[%emt 0:00:01] Blacks defense is rewarded with a draw.  Weighted Error Value: White=0.27 (precise) /Black=0.72} 1/2-1/2